[Event "African Games-chT 2019"]
[Site "Casablanca"]
[Date "2019.08.24"]
[Round "3.31"]
[White "Nkhoma, Desiderata"]
[Black "Essoo, Uvika"]
[Result "1-0"]
[ECO "B01"]
[WhiteElo "1481"]
[BlackElo "1187"]
[Annotator "NA"]
[PlyCount "67"]
[EventDate "2019.08.24"]
[EventType "team-tourn"]
[EventCountry "MAR"]
[SourceTitle "playchess.com"]
[Source "ChessBase"]
[SourceQuality "1"]
[WhiteTeam "MAW"]
[BlackTeam "Mauritius"]
[BlackTeamCountry "MRI"]
[TimeControl "900+10"]

1. e4 {[%emt 0:00:00]} d5 {[%emt 0:00:00]} 2. exd5 {[%emt 0:00:00]} Qxd5 {[%emt 0:00:00]} 3. Nf3 {[%emt 0:00:02]} Nf6 {[%emt 0:00:01]} 4. Be2 {[%emt 0:00:10]} Bf5 {[%emt 0:00:07]} 5. O-O {[%emt 0:00:05]} e6 {[%emt 0:00:04]} 6. Nc3 {[%emt 0:00:07]} Qd8 {[%emt 0:00:28]} 7. d4 {[%emt 0:00:04]} c6 {[%emt 0:00:33]} 8. h3 {[%emt 0:00:28]} Bd6 {[%emt 0:00:53]} 9. Bg5 {[%emt 0:01:34]} Nbd7 {[%emt 0:00:15]} 10. Bd3 {[%emt 0:00:51]} Bxd3 {[%emt 0:01:44]} 11. Qxd3 {[%emt 0:00:04]} O-O {[%emt 0:00:21]} 12. Rfe1 {[%emt 0:00:34]} Re8 {[%emt 0:01:15]} 13. Ne5 {[%emt 0:00:41]} Qc7 {[%emt 0:02:23]} 14. Nxd7 {[%emt 0:01:58]} Nxd7 {[%emt 0:01:46]} 15. Ne4 {[%emt 0:00:33]} Be7 {[%emt 0:00:55]} 16. Bxe7 {[%emt 0:00:29]} Rxe7 {[%emt 0:00:23]} 17. Ng5 {[%emt 0:00:31]} g6 {[%emt 0:00:47]} 18. h4 {[%emt 0:01:32]} Nf6 {[%emt 0:00:30]} 19. Qh3 {[%emt 0:00:21]} Nh5 {[%emt 0:00:32]} 20. g3 {[%emt 0:01:48]} h6 {[%emt 0:01:24]} 21. Ne4 {[%emt 0:00:22]} f5 {[%emt 0:00:29]} 22. Nc5 {[%emt 0:00:27]} e5 {[%emt 0:00:42]} 23. dxe5 {[%emt 0:00:26]} Rxe5 {[%emt 0:00:13]} 24. Nd3 {[%emt 0:00:35]} Re7 {[%emt 0:00:20]} 25. Rxe7 {[%emt 0:00:50]} Qxe7 {[%emt 0:00:15]} 26. Re1 {[%emt 0:00:03]} Qf6 {[%emt 0:00:32]} 27. c3 {[%emt 0:00:15]} Rd8 {[%emt 0:00:32]} 28. Qf1 {[%emt 0:00:13]} Qd6 {[%emt 0:00:37]} 29. Nb4 {[%emt 0:02:16]} a5 {[%emt 0:00:31]} 30. Qc4+ {[%emt 0:00:07]} Kh7 {[%emt 0:00:41]} 31. Qf7+ {[%emt 0:00:16]} Ng7 {[%emt 0:00:18]} 32. Nc2 {[%emt 0:00:31]} Rf8 {[%emt 0:00:14]} 33. Qxb7 {[%emt 0:00:32]} Qd2 {[%emt 0:00:27]} 34. Qb3 {[%emt 0:00:29]} 1-0

[Event "African Games-chT 2019"]
[Site "Casablanca"]
[Date "2019.08.24"]
[Round "3.32"]
[White "Beekhy, Aamirah"]
[Black "Msukwa, Tupokiwe"]
[Result "1/2-1/2"]
[ECO "D02"]
[WhiteElo "1373"]
[BlackElo "1289"]
[Annotator "NA"]
[PlyCount "42"]
[EventDate "2019.08.24"]
[EventType "team-tourn"]
[EventCountry "MAR"]
[SourceTitle "playchess.com"]
[Source "ChessBase"]
[SourceQuality "1"]
[WhiteTeam "Mauritius"]
[BlackTeam "MAW"]
[WhiteTeamCountry "MRI"]
[TimeControl "900+10"]

1. d4 {[%emt 0:00:00]} d5 {[%emt 0:05:33]} 2. Nf3 {[%emt 0:00:00]} e6 {[%emt 0:00:06]} 3. Bf4 {[%emt 0:00:00]} c5 {[%emt 0:00:20]} 4. e3 {[%emt 0:00:47]} Nc6 {[%emt 0:00:07]} 5. Be2 {[%emt 0:00:19]} Nf6 {[%emt 0:00:07]} 6. h3 {[%emt 0:00:09]} h6 {[%emt 0:00:04]} 7. O-O {[%emt 0:00:13]} cxd4 {[%emt 0:00:26]} 8. exd4 {[%emt 0:00:49]} Bd6 {[%emt 0:00:07]} 9. Bxd6 {[%emt 0:00:49]} Qxd6 {[%emt 0:00:02]} 10. c4 {[%emt 0:00:44]} O-O {[%emt 0:00:36]} 11. cxd5 {[%emt 0:01:56]} Nxd5 {[%emt 0:00:06]} 12. Nc3 {[%emt 0:00:38]} Nf6 {[%emt 0:00:17]} 13. Rc1 {[%emt 0:00:28]} Rd8 {[%emt 0:01:04]} 14. Nb5 {[%emt 0:01:15]} Qd7 {[%emt 0:00:35]} 15. Qa4 {[%emt 0:00:55]} a6 {[%emt 0:01:01]} 16. Rfd1 {[%emt 0:00:15]} Qe7 {[%emt 0:00:46]} 17. Qa5 {[%emt 0:02:32]} Nxa5 {[%emt 0:00:03]} 18. Nc7 {[%emt 0:01:05]} Ra7 {[%emt 0:02:12]} 19. Ne5 {[%emt 0:01:20]} b5 {[%emt 0:00:50]} 20. Nc6 {[%emt 0:03:43]} Nxc6 {[%emt 0:00:02]} 21. Rxc6 {[%emt 0:00:01]} Rxc7 1/2-1/2

[Event "African Games-chT 2019"]
[Site "Casablanca"]
[Date "2019.08.24"]
[Round "4.3"]
[White "Mayar ElIdrissi, Firdaous"]
[Black "Wafa, Shrook"]
[Result "0-1"]
[ECO "B50"]
[WhiteElo "1760"]
[BlackElo "2183"]
[Annotator "NA"]
[PlyCount "166"]
[EventDate "2019.08.24"]
[EventType "team-tourn"]
[EventCountry "MAR"]
[SourceTitle "playchess.com"]
[Source "ChessBase"]
[SourceQuality "1"]
[WhiteTeam "Morocco"]
[BlackTeam "Egypt"]
[WhiteTeamCountry "MAR"]
[BlackTeamCountry "EGY"]
[TimeControl "900+10"]

1. e4 {[%emt 0:00:00]} c5 {[%emt 0:00:00]} 2. Nf3 {[%emt 0:00:00]} d6 {[%emt 0:00:01]} 3. d3 {[%emt 0:00:00]} g6 {[%emt 0:00:06]} 4. g3 {[%emt 0:00:00]} Bg7 {[%emt 0:00:04]} 5. Bg2 {[%emt 0:00:01]} Nc6 {[%emt 0:00:04]} 6. O-O {[%emt 0:00:02]} Nf6 {[%emt 0:00:08]} 7. Nc3 {[%emt 0:00:01]} O-O {[%emt 0:00:10]} 8. h3 {[%emt 0:00:07]} Rb8 {[%emt 0:00:06]} 9. a4 {[%emt 0:00:03]} a6 {[%emt 0:00:04]} 10. Nh2 {[%emt 0:00:07]} b5 {[%emt 0:00:07]} 11. axb5 {[%emt 0:00:01]} axb5 {[%emt 0:00:02]} 12. b3 {[%emt 0:00:01]} Nd4 {[%emt 0:01:10]} 13. Bd2 {[%emt 0:01:16]} Qc7 {[%emt 0:00:55]} 14. Ra2 {[%emt 0:00:53]} Be6 {[%emt 0:01:08]} 15. Ne2 {[%emt 0:01:34]} Nxe2+ {[%emt 0:01:37]} 16. Qxe2 {[%emt 0:00:02]} c4 {[%emt 0:00:02]} 17. Ba5 {[%emt 0:03:06]} Qc8 {[%emt 0:00:08]} 18. Ra3 {[%emt 0:00:53]} cxb3 {[%emt 0:00:38]} 19. cxb3 {[%emt 0:00:07]} Bxh3 {[%emt 0:00:08]} 20. b4 {[%emt 0:00:57]} Bxg2 {[%emt 0:00:10]} 21. Kxg2 {[%emt 0:00:01]} Qc6 {[%emt 0:00:36]} 22. Ra2 {[%emt 0:00:19]} Rfc8 {[%emt 0:00:08]} 23. Nf3 {[%emt 0:00:08]} Nd7 {[%emt 0:00:58]} 24. Rh1 {[%emt 0:00:45]} h6 {[%emt 0:00:53]} 25. Qe3 {[%emt 0:00:09]} Qc3 {[%emt 0:00:25]} 26. Rd2 {[%emt 0:01:21]} Ne5 {[%emt 0:00:54]} 27. Ne1 {[%emt 0:01:57]} Nc6 {[%emt 0:01:28]} 28. Rc2 {[%emt 0:01:49]} Qd4 {[%emt 0:00:45]} 29. Qc1 {[%emt 0:00:49]} Na7 {[%emt 0:00:42]} 30. Qd2 {[%emt 0:00:47]} Rxc2 {[%emt 0:00:49]} 31. Nxc2 {[%emt 0:00:03]} Qb2 {[%emt 0:00:05]} 32. Qd1 {[%emt 0:00:23]} Rc8 {[%emt 0:00:26]} 33. Ne3 {[%emt 0:00:19]} Nc6 {[%emt 0:00:35]} 34. Qb1 {[%emt 0:02:00]} Qxb1 {[%emt 0:00:14]} 35. Rxb1 {[%emt 0:00:01]} Nd4 {[%emt 0:01:15]} 36. Nd5 {[%emt 0:00:12]} Kf8 {[%emt 0:00:13]} 37. Bb6 {[%emt 0:00:34]} Rc2 {[%emt 0:00:49]} 38. Ra1 {[%emt 0:00:18]} Be5 {[%emt 0:01:37]} 39. Ra8+ {[%emt 0:00:11]} Kg7 {[%emt 0:00:02]} 40. Nxe7 {[%emt 0:00:04]} Ne6 {[%emt 0:00:43]} 41. Be3 {[%emt 0:00:12]} Bf6 {[%emt 0:00:42]} 42. Nd5 {[%emt 0:00:13]} Rb2 {[%emt 0:00:15]} 43. Rb8 {[%emt 0:00:03]} Bd4 {[%emt 0:00:08]} 44. Rxb5 {[%emt 0:00:03]} Bxe3 {[%emt 0:00:14]} 45. Nxe3 {[%emt 0:00:01]} Nd4 {[%emt 0:00:06]} 46. Rb6 {[%emt 0:00:07]} Rb3 {[%emt 0:00:04]} 47. Nc4 {[%emt 0:00:03]} Rxd3 {[%emt 0:00:04]} 48. Rxd6 {[%emt 0:00:04]} Nc2 {[%emt 0:00:35]} 49. b5 {[%emt 0:00:24]} Rb3 {[%emt 0:00:10]} 50. b6 {[%emt 0:00:01]} Kf8 {[%emt 0:00:08]} 51. Rd7 {[%emt 0:00:08]} Ke8 {[%emt 0:00:03]} 52. Ra7 {[%emt 0:00:03]} Kd8 {[%emt 0:00:15]} 53. Rxf7 {[%emt 0:00:19]} Nd4 {[%emt 0:00:09]} 54. b7 {[%emt 0:00:14]} Nc6 {[%emt 0:00:04]} 55. e5 {[%emt 0:00:21]} Ne7 {[%emt 0:00:18]} 56. Na5 {[%emt 0:00:10]} Rb5 {[%emt 0:00:05]} 57. Nc6+ {[%emt 0:00:05]} Nxc6 {[%emt 0:00:07]} 58. Rg7 {[%emt 0:00:27]} Ne7 {[%emt 0:00:04]} 59. Rf7 {[%emt 0:00:20]} Rxb7 {[%emt 0:00:09]} 60. f4 {[%emt 0:00:02]} Kd7 {[%emt 0:00:11]} 61. g4 {[%emt 0:00:07]} Ke8 {[%emt 0:00:16]} 62. Rh7 {[%emt 0:00:01]} Rb4 {[%emt 0:00:05]} 63. Kf3 Nd5 64. f5 {[%emt 0:00:06]} gxf5 {[%emt 0:00:10]} 65. gxf5 {[%emt 0:00:01]} Rf4+ {[%emt 0:00:12]} 66. Ke2 {[%emt 0:00:06]} Rxf5 {[%emt 0:00:09]} 67. Rxh6 {[%emt 0:00:07]} Rxe5+ {[%emt 0:00:02]} 68. Kd2 {[%emt 0:00:09]} Ke7 {[%emt 0:00:01]} 69. Kd3 {[%emt 0:00:03]} Nf6 {[%emt 0:00:02]} 70. Kc3 {[%emt 0:00:03]} Rf5 {[%emt 0:00:13]} 71. Rh1 {[%emt 0:00:08]} Kd6 {[%emt 0:00:02]} 72. Kd4 {[%emt 0:00:06]} Rf4+ {[%emt 0:00:03]} 73. Ke3 {[%emt 0:00:03]} Ke5 {[%emt 0:00:04]} 74. Ra1 {[%emt 0:00:04]} Nd5+ {[%emt 0:00:05]} 75. Kd3 {[%emt 0:00:02]} Rd4+ {[%emt 0:00:05]} 76. Ke2 {[%emt 0:00:03]} Ke4 {[%emt 0:00:04]} 77. Ra3 {[%emt 0:00:04]} Nf4+ {[%emt 0:00:07]} 78. Kf2 {[%emt 0:00:03]} Rd2+ {[%emt 0:00:11]} 79. Ke1 {[%emt 0:00:05]} Rb2 {[%emt 0:00:07]} 80. Kd1 {[%emt 0:00:09]} Nd5 {[%emt 0:00:18]} 81. Kc1 {[%emt 0:00:06]} Rg2 {[%emt 0:00:03]} 82. Kd1 {[%emt 0:00:06]} Ne3+ {[%emt 0:00:28]} 83. Kc1 {[%emt 0:00:04]} Rg1+ {[%emt 0:00:06] Ra1 Ke5+} 0-1

[Event "African Games-chT 2019"]
[Site "Casablanca"]
[Date "2019.08.24"]
[Round "4.4"]
[White "Wafa, Shahenda"]
[Black "Rania, Sbai"]
[Result "1-0"]
[ECO "C78"]
[WhiteElo "2139"]
[BlackElo "1853"]
[Annotator "NA"]
[PlyCount "58"]
[EventDate "2019.08.24"]
[EventType "team-tourn"]
[EventCountry "MAR"]
[SourceTitle "playchess.com"]
[Source "ChessBase"]
[SourceQuality "1"]
[WhiteTeam "Egypt"]
[BlackTeam "Morocco"]
[WhiteTeamCountry "EGY"]
[BlackTeamCountry "MAR"]
[TimeControl "900+10"]

1. e4 {[%emt 0:00:00]} e5 {[%emt 0:00:00]} 2. Nf3 {[%emt 0:00:00]} Nc6 {[%emt 0:00:00]} 3. Bb5 {[%emt 0:00:03]} a6 {[%emt 0:00:04]} 4. Ba4 {[%emt 0:00:01]} Nf6 {[%emt 0:00:18]} 5. O-O {[%emt 0:00:05]} b5 {[%emt 0:00:31]} 6. Bb3 {[%emt 0:00:02]} d6 {[%emt 0:00:47]} 7. Ng5 {[%emt 0:03:42]} Be6 {[%emt 0:01:31]} 8. Bxe6 {[%emt 0:01:08]} fxe6 {[%emt 0:00:01]} 9. Nxe6 {[%emt 0:00:02]} Qd7 {[%emt 0:00:38]} 10. Nxf8 {[%emt 0:00:07]} Rxf8 {[%emt 0:00:25]} 11. d3 {[%emt 0:01:25]} Qg4 {[%emt 0:01:40]} 12. Qxg4 {[%emt 0:01:54]} Nxg4 {[%emt 0:00:01]} 13. c3 {[%emt 0:00:23]} Kd7 {[%emt 0:03:15]} 14. h3 {[%emt 0:00:59]} Nf6 {[%emt 0:00:09]} 15. Be3 {[%emt 0:00:08]} Rab8 {[%emt 0:01:24]} 16. Nd2 {[%emt 0:00:36]} Ne7 {[%emt 0:00:54]} 17. d4 {[%emt 0:00:55]} Ng6 {[%emt 0:00:28]} 18. Rfd1 {[%emt 0:00:33]} Rbe8 {[%emt 0:01:36]} 19. f3 {[%emt 0:00:23]} Nh5 {[%emt 0:00:33]} 20. Nb3 {[%emt 0:00:22]} Kc8 {[%emt 0:00:19]} 21. a4 {[%emt 0:00:07]} exd4 {[%emt 0:01:16]} 22. Nxd4 {[%emt 0:01:45]} bxa4 {[%emt 0:01:59]} 23. Rxa4 {[%emt 0:00:11]} Kb7 {[%emt 0:00:17]} 24. Nc2 {[%emt 0:00:09]} Ne5 {[%emt 0:00:38]} 25. Rda1 {[%emt 0:00:34]} Ra8 {[%emt 0:00:12]} 26. Nb4 {[%emt 0:00:47]} Nc4 {[%emt 0:00:01]} 27. Nd5 {[%emt 0:00:18]} Nxe3 {[%emt 0:00:22]} 28. Nxe3 {[%emt 0:00:04]} Nf4 {[%emt 0:00:01]} 29. Nd5 {[%emt 0:00:26]} Nxd5 1-0

[Event "African Games-chT 2019"]
[Site "Casablanca"]
[Date "2019.08.24"]
[Round "4.5"]
[White "Chumfwa, Stanley"]
[Black "Zaibi, Amir"]
[Result "0-1"]
[ECO "B48"]
[WhiteElo "2317"]
[BlackElo "2367"]
[Annotator "NA"]
[PlyCount "64"]
[EventDate "2019.08.24"]
[EventType "team-tourn"]
[EventCountry "MAR"]
[SourceTitle "playchess.com"]
[Source "ChessBase"]
[SourceQuality "1"]
[WhiteTeam "Zambia"]
[BlackTeam "Tunisia"]
[WhiteTeamCountry "ZAM"]
[BlackTeamCountry "TUN"]
[TimeControl "900+10"]

1. e4 {[%emt 0:00:00]} c5 {[%emt 0:00:33]} 2. Nf3 {[%emt 0:00:00]} e6 {[%emt 0:00:02]} 3. d4 {[%emt 0:00:00]} cxd4 {[%emt 0:00:02]} 4. Nxd4 {[%emt 0:00:00]} Nc6 {[%emt 0:00:01]} 5. Nc3 {[%emt 0:00:05]} Qc7 {[%emt 0:00:01]} 6. Be3 {[%emt 0:00:40]} a6 {[%emt 0:00:02]} 7. Qd2 {[%emt 0:00:05]} Nf6 {[%emt 0:00:02]} 8. f3 {[%emt 0:00:04]} Bb4 {[%emt 0:00:08]} 9. O-O-O {[%emt 0:00:06]} Ne7 {[%emt 0:00:12]} 10. Qe1 {[%emt 0:00:42]} Bxc3 {[%emt 0:00:16]} 11. Qxc3 {[%emt 0:00:03]} Qxc3 {[%emt 0:00:03]} 12. bxc3 {[%emt 0:00:01]} d5 {[%emt 0:02:35]} 13. e5 {[%emt 0:00:21]} Nd7 {[%emt 0:00:01]} 14. f4 {[%emt 0:00:02]} b6 {[%emt 0:00:04]} 15. Be2 {[%emt 0:04:04]} Bb7 {[%emt 0:00:06]} 16. Nb3 {[%emt 0:00:35]} Rc8 {[%emt 0:00:53]} 17. Kb2 {[%emt 0:00:29]} Nc5 {[%emt 0:00:42]} 18. Nxc5 {[%emt 0:00:46]} bxc5 {[%emt 0:00:03]} 19. Rhe1 {[%emt 0:01:43]} O-O {[%emt 0:00:41]} 20. g3 {[%emt 0:01:17]} Rc7 {[%emt 0:01:06]} 21. Bf2 {[%emt 0:00:20]} Nc8 {[%emt 0:01:53]} 22. Ka1 {[%emt 0:00:51]} Nb6 {[%emt 0:02:53]} 23. g4 {[%emt 0:03:57]} Na4 {[%emt 0:00:17]} 24. Rd3 {[%emt 0:00:05]} Bc6 {[%emt 0:00:29]} 25. Rg3 {[%emt 0:01:23]} Bb5 {[%emt 0:00:18]} 26. Bxb5 {[%emt 0:00:37]} axb5 {[%emt 0:00:01]} 27. Rb1 {[%emt 0:00:00]} Rb8 {[%emt 0:01:03]} 28. Rb3 {[%emt 0:00:08]} Ra7 {[%emt 0:00:27]} 29. Kb1 {[%emt 0:00:12]} Ra5 {[%emt 0:00:09]} 30. Kc1 {[%emt 0:00:03]} Rc8 {[%emt 0:00:17]} 31. Kd2 {[%emt 0:00:24]} Nb6 {[%emt 0:00:06]} 32. Ke2 {[%emt 0:00:06]} Nc4 {[%emt 0:00:25]} 0-1

[Event "African Games-chT 2019"]
[Site "Casablanca"]
[Date "2019.08.24"]
[Round "4.6"]
[White "Boudriga, Mohamed Ali"]
[Black "Kayonde, Andrew"]
[Result "1/2-1/2"]
[ECO "B19"]
[WhiteElo "2325"]
[BlackElo "2384"]
[Annotator "NA"]
[PlyCount "117"]
[EventDate "2019.08.24"]
[EventType "team-tourn"]
[EventCountry "MAR"]
[SourceTitle "playchess.com"]
[Source "ChessBase"]
[SourceQuality "1"]
[WhiteTeam "Tunisia"]
[BlackTeam "Zambia"]
[WhiteTeamCountry "TUN"]
[BlackTeamCountry "ZAM"]
[TimeControl "900+10"]

1. e4 {[%emt 0:01:31]} c6 {[%emt 0:00:00]} 2. d4 {[%emt 0:00:09]} d5 {[%emt 0:00:00]} 3. Nc3 {[%emt 0:00:05]} dxe4 {[%emt 0:00:00]} 4. Nxe4 {[%emt 0:00:03]} Bf5 {[%emt 0:00:00]} 5. Ng3 {[%emt 0:00:03]} Bg6 {[%emt 0:00:00]} 6. h4 {[%emt 0:00:08]} h6 {[%emt 0:00:02]} 7. Nf3 {[%emt 0:00:02]} Nd7 {[%emt 0:00:02]} 8. h5 {[%emt 0:00:02]} Bh7 {[%emt 0:00:02]} 9. Bd3 {[%emt 0:00:24]} Bxd3 {[%emt 0:00:03]} 10. Qxd3 {[%emt 0:00:02]} e6 {[%emt 0:00:02]} 11. Bd2 {[%emt 0:00:02]} Ngf6 {[%emt 0:00:03]} 12. O-O-O {[%emt 0:00:10]} Be7 {[%emt 0:00:02]} 13. Kb1 {[%emt 0:00:22]} Qb6 {[%emt 0:00:08]} 14. c4 {[%emt 0:00:50]} O-O {[%emt 0:00:45]} 15. Qe2 {[%emt 0:03:23]} Rfe8 {[%emt 0:00:57]} 16. Ne5 {[%emt 0:00:21]} c5 {[%emt 0:00:42]} 17. Bc3 {[%emt 0:00:37]} Rad8 {[%emt 0:00:53]} 18. Nxd7 {[%emt 0:01:16]} Rxd7 {[%emt 0:02:31]} 19. dxc5 {[%emt 0:00:25]} Qxc5 {[%emt 0:00:07]} 20. Rxd7 {[%emt 0:00:34]} Nxd7 {[%emt 0:00:03]} 21. Ne4 {[%emt 0:00:01]} Qc6 {[%emt 0:00:10]} 22. Rd1 {[%emt 0:01:20]} Nc5 {[%emt 0:00:57]} 23. Nxc5 {[%emt 0:00:15]} Bxc5 {[%emt 0:00:04]} 24. f4 {[%emt 0:00:28]} Rc8 {[%emt 0:00:25]} 25. b3 {[%emt 0:01:42]} Ba3 {[%emt 0:00:06]} 26. Bb2 {[%emt 0:00:44]} Bxb2 {[%emt 0:00:06]} 27. Kxb2 {[%emt 0:00:02]} a6 {[%emt 0:00:08]} 28. g4 {[%emt 0:00:42]} b5 {[%emt 0:00:20]} 29. Rd4 {[%emt 0:00:02]} Qh1 {[%emt 0:03:05]} 30. Rd1 {[%emt 0:00:36]} Qb7 {[%emt 0:00:14]} 31. cxb5 {[%emt 0:00:10]} axb5 {[%emt 0:00:03]} 32. g5 {[%emt 0:00:10]} Qc7 {[%emt 0:01:36]} 33. gxh6 {[%emt 0:00:13]} gxh6 {[%emt 0:00:03]} 34. Rg1+ {[%emt 0:01:06]} Kf8 {[%emt 0:00:08]} 35. Qd2 {[%emt 0:00:14]} Rd8 {[%emt 0:01:10]} 36. Qb4+ {[%emt 0:00:27]} Qd6 {[%emt 0:00:02]} 37. Qxd6+ {[%emt 0:00:06]} Rxd6 {[%emt 0:00:02]} 38. Kc3 {[%emt 0:00:12]} Rd5 {[%emt 0:00:01]} 39. Rh1 {[%emt 0:00:05]} Rf5 {[%emt 0:00:02]} 40. Kb4 {[%emt 0:01:13]} Ke7 {[%emt 0:00:05]} 41. Ka5 {[%emt 0:00:35]} Kd6 {[%emt 0:00:19]} 42. b4 {[%emt 0:00:01]} Kc6 {[%emt 0:01:17]} 43. Rc1+ {[%emt 0:00:47]} Kb7 {[%emt 0:00:02]} 44. Rh1 {[%emt 0:00:09]} Rxf4 {[%emt 0:01:00]} 45. Kxb5 {[%emt 0:00:04]} Rf5+ {[%emt 0:00:19]} 46. Kc4 {[%emt 0:00:16]} Kb6 {[%emt 0:00:04]} 47. Rh4 {[%emt 0:00:04]} e5 {[%emt 0:00:44]} 48. a4 {[%emt 0:00:15]} Rf1 {[%emt 0:00:23]} 49. Kd5 {[%emt 0:00:21]} f6 {[%emt 0:00:02]} 50. Rc4 {[%emt 0:00:13]} Kb7 {[%emt 0:00:46]} 51. a5 {[%emt 0:00:13]} Rf5 {[%emt 0:00:15]} 52. Ke6 {[%emt 0:00:14]} Rf4 {[%emt 0:00:03]} 53. Rc5 {[%emt 0:00:06]} e4 {[%emt 0:00:09]} 54. Rc4 {[%emt 0:00:05]} f5 {[%emt 0:00:06]} 55. b5 {[%emt 0:00:02]} e3 {[%emt 0:00:14]} 56. Rc1 {[%emt 0:00:11]} e2 {[%emt 0:00:25]} 57. Re1 {[%emt 0:00:03]} Rf2 {[%emt 0:00:01]} 58. Kd6 {[%emt 0:00:25]} f4 {[%emt 0:00:02]} 59. Rg1 1/2-1/2

[Event "African Games-chT 2019"]
[Site "Casablanca"]
[Date "2019.08.24"]
[Round "4.7"]
[White "Mwango, Lorita"]
[Black "Marzouk, Amira"]
[Result "1-0"]
[ECO "A22"]
[WhiteElo "1947"]
[BlackElo "1698"]
[Annotator "NA"]
[PlyCount "35"]
[EventDate "2019.08.24"]
[EventType "team-tourn"]
[EventCountry "MAR"]
[SourceTitle "playchess.com"]
[Source "ChessBase"]
[SourceQuality "1"]
[WhiteTeam "Zambia"]
[BlackTeam "Tunisia"]
[WhiteTeamCountry "ZAM"]
[BlackTeamCountry "TUN"]
[TimeControl "900+10"]

1. c4 {[%emt 0:00:16]} e5 {[%emt 0:00:22]} 2. Nc3 {[%emt 0:00:00]} Nf6 {[%emt 0:00:00]} 3. g3 {[%emt 0:00:00]} d5 {[%emt 0:00:00]} 4. cxd5 {[%emt 0:00:25]} Nxd5 {[%emt 0:00:00]} 5. Bg2 {[%emt 0:00:02]} Nxc3 {[%emt 0:00:04]} 6. bxc3 {[%emt 0:00:03]} Be7 {[%emt 0:00:33]} 7. Nf3 {[%emt 0:00:07]} Nc6 {[%emt 0:00:09]} 8. O-O {[%emt 0:00:27]} O-O {[%emt 0:00:03]} 9. Qb3 {[%emt 0:01:10]} Kh8 {[%emt 0:00:26]} 10. d3 {[%emt 0:00:27]} f5 {[%emt 0:00:51]} 11. Bb2 {[%emt 0:01:03]} Rb8 {[%emt 0:00:32]} 12. Rad1 {[%emt 0:01:01]} Qe8 {[%emt 0:00:27]} 13. Rfe1 {[%emt 0:01:22]} Qg6 {[%emt 0:00:23]} 14. e3 {[%emt 0:00:55]} f4 {[%emt 0:00:23]} 15. exf4 {[%emt 0:00:12]} exf4 {[%emt 0:00:12]} 16. Ba3 {[%emt 0:01:10]} Bxa3 {[%emt 0:00:13]} 17. Qxa3 {[%emt 0:00:02]} fxg3 {[%emt 0:00:10]} 18. Qxf8# {[%emt 0:00:12]} 1-0

[Event "African Games-chT 2019"]
[Site "Casablanca"]
[Date "2019.08.24"]
[Round "4.8"]
[White "Miladi, Amen"]
[Black "Mululu Linah"]
[Result "1-0"]
[ECO "B43"]
[WhiteElo "1811"]
[BlackElo "1633"]
[Annotator "NA"]
[PlyCount "75"]
[EventDate "2019.08.24"]
[EventType "team-tourn"]
[EventCountry "MAR"]
[SourceTitle "playchess.com"]
[Source "ChessBase"]
[SourceQuality "1"]
[WhiteTeam "Tunisia"]
[BlackTeam "Zambia"]
[WhiteTeamCountry "TUN"]
[BlackTeamCountry "ZAM"]
[TimeControl "900+10"]

1. e4 {[%emt 0:00:43]} c5 {[%emt 0:00:00]} 2. Nf3 {[%emt 0:00:00]} e6 {[%emt 0:00:00]} 3. d4 {[%emt 0:00:04]} cxd4 {[%emt 0:00:00]} 4. Nxd4 {[%emt 0:00:01]} a6 {[%emt 0:00:00]} 5. Nc3 {[%emt 0:00:12]} Qc7 {[%emt 0:00:08]} 6. Be2 {[%emt 0:00:08]} Nf6 {[%emt 0:00:15]} 7. O-O {[%emt 0:00:04]} b5 {[%emt 0:00:05]} 8. a3 {[%emt 0:00:01]} Bb7 {[%emt 0:00:01]} 9. Kh1 {[%emt 0:00:03]} Nxe4 {[%emt 0:00:33]} 10. Nxe4 {[%emt 0:00:24]} Bxe4 {[%emt 0:00:02]} 11. Re1 {[%emt 0:00:36]} Bb7 {[%emt 0:00:29]} 12. Bf3 {[%emt 0:00:40]} Bxf3 {[%emt 0:00:28]} 13. Qxf3 {[%emt 0:00:02]} Nc6 {[%emt 0:00:03]} 14. a4 {[%emt 0:00:42]} Rc8 {[%emt 0:00:37]} 15. Nf5 {[%emt 0:00:36]} d5 {[%emt 0:02:17]} 16. axb5 {[%emt 0:00:14]} axb5 {[%emt 0:00:07]} 17. Bf4 {[%emt 0:00:15]} Qd8 {[%emt 0:01:32]} 18. Qd3 {[%emt 0:02:43]} g6 {[%emt 0:00:27]} 19. Ne3 {[%emt 0:00:17]} Bg7 {[%emt 0:00:59]} 20. Qxb5 {[%emt 0:01:42]} O-O {[%emt 0:00:05]} 21. Rad1 {[%emt 0:01:04]} Qf6 {[%emt 0:00:12]} 22. Bd6 {[%emt 0:01:31]} Rfd8 {[%emt 0:00:40]} 23. Ba3 {[%emt 0:00:05]} Qxf2 {[%emt 0:00:44]} 24. c4 {[%emt 0:00:19]} d4 {[%emt 0:00:48]} 25. Ng4 {[%emt 0:00:31]} Qf4 {[%emt 0:00:27]} 26. h3 {[%emt 0:00:08]} h5 {[%emt 0:00:11]} 27. Rf1 {[%emt 0:00:15]} Qg3 {[%emt 0:01:14]} 28. Nf6+ {[%emt 0:00:45]} Bxf6 {[%emt 0:01:46]} 29. Rxf6 {[%emt 0:00:01]} Ne5 {[%emt 0:00:14]} 30. Be7 {[%emt 0:00:37]} Rd7 {[%emt 0:00:59]} 31. Bc5 {[%emt 0:00:47]} d3 {[%emt 0:00:15]} 32. Bg1 {[%emt 0:01:28]} Rxc4 {[%emt 0:01:10]} 33. Bh2 {[%emt 0:00:07]} Qe3 {[%emt 0:00:57]} 34. Bxe5 {[%emt 0:00:10]} Rc1 {[%emt 0:01:16]} 35. Qb8+ {[%emt 0:00:02]} Kh7 {[%emt 0:00:43]} 36. Rxf7+ {[%emt 0:00:05]} Kh6 {[%emt 0:00:14]} 37. Bf4+ {[%emt 0:00:08]} g5 {[%emt 0:00:24]} 38. Qh8+ {[%emt 0:00:06]} 1-0